Workbook

Sheet MMF 5-7-10
A2: Undulator | C2: ='RAW 5-7-10'!B5 -> SN 18
A3: Date | C3: ='RAW 5-7-10'!B6 -> 2010-05-07
A4: Crew | C4: ='RAW 5-7-10'!B7 -> JM, LG
A7: Undulator Values
A9: TB | B9: Y (in) | C9: Y (mm) | F9: TB | G9: X (in) | H9: X (mm)
A10: 1 | B10: ='RAW 5-7-10'!A169 -> 3.479 | C10: =B10*25.4 -> 88.3666 | F10: 5 | G10: ='RAW 5-7-10'!A35 -> 4.29127027 | H10: =G10*25.4 -> 108.9982649
A11: 2 | B11: ='RAW 5-7-10'!B169 -> 3.471 | C11: =B11*25.4 -> 88.1634 | F11: 6 | G11: ='RAW 5-7-10'!B35 -> 4.29527027 | H11: =G11*25.4 -> 109.0998649
A12: 3 | B12: ='RAW 5-7-10'!C169 -> 3.471 | C12: =B12*25.4 -> 88.1634 | F12: 7 | G12: ='RAW 5-7-10'!C35 -> 4.29527027 | H12: =G12*25.4 -> 109.0998649
A13: 4 | B13: ='RAW 5-7-10'!D169 -> 3.475 | C13: =B13*25.4 -> 88.265 | F13: 8 | G13: ='RAW 5-7-10'!D35 -> 4.29627027 | H13: =G13*25.4 -> 109.1252649
A16: PM Values
C18: Upstream | E18: (PM 3) | G18: Checks
A19: TB | B19: X (in) | C19: Y (in) | D19: X (mm) | E19: Y (mm) | G19: X (mm) | H19: Y (mm)
A20: Y2 | B20: ='RAW 5-7-10'!C78 -> -5.48072973 | C20: ='RAW 5-7-10'!C118 -> -0.002 | D20: =B20*25.4 -> -139.2105351 | E20: =C20*25.4 -> -0.0508 | G20: =H10-D21 -> 156.8196 | H20: =C10-E20 -> 88.4174
A21: X1 | B21: ='RAW 5-7-10'!A78 -> -1.88272973 | C21: ='RAW 5-7-10'!D118 -> -3.605 | D21: =B21*25.4 -> -47.82133514 | E21: =C21*25.4 -> -91.567
A22: Y1 | B22: ='RAW 5-7-10'!B78 -> -5.47872973 | D22: =B22*25.4 -> -139.1597351
C24: Downstream | E24: (PM 2) | G24: Checks
A25: TB | B25: X (in) | C25: Y (in) | D25: X (mm) | E25: Y (mm) | G25: X (mm) | H25: Y (mm)
A26: Y1 | B26: ='RAW 5-7-10'!B87 -> -5.47972973 | C26: ='RAW 5-7-10'!A128 -> -0.005 | D26: =B26*25.4 -> -139.1851351 | E26: =C26*25.4 -> -0.127 | G26: =H13-D27 -> 156.9212 | H26: =C13-E26 -> 88.392
A27: X1 | B27: ='RAW 5-7-10'!A87 -> -1.88172973 | C27: ='RAW 5-7-10'!B128 -> -3.605 | D27: =B27*25.4 -> -47.79593514 | E27: =C27*25.4 -> -91.567
A28: Y2 | B28: ='RAW 5-7-10'!C87 -> -5.47872973 | C28: \ | D28: =B28*25.4 -> -139.1597351
B33: Probe | F33: Flats
B35: X (in) | C35: X (mm) | F35: Y(in) | G35: Y(mm)
B36: ='RAW 5-7-10'!C141 -> -5.477 | C36: =B36*25.4 -> -139.1158 | E36: US + | F36: ='RAW 5-7-10'!A197 -> 1.714 | G36: =F36*25.4 -> 43.5356
E37: US - | F37: ='RAW 5-7-10'!B197 -> 1.714 | G37: =F37*25.4 -> 43.5356
E38: DS + | F38: ='RAW 5-7-10'!C197 -> 1.715 | G38: =F38*25.4 -> 43.561
C39: Top of Gage Block | E39: DS - | F39: ='RAW 5-7-10'!D197 -> 1.714 | G39: =F39*25.4 -> 43.5356
B41: Y (in) | C41: Y (mm)
B42: ='RAW 5-7-10'!A139 -> -4.399 | C42: =B42*25.4 -> -111.7346

Sheet AEG 5-7-10
A2: Undulator | C2: ='RAW 5-7-10'!B5 -> SN 18
A3: Date | C3: ='RAW 5-7-10'!B6 -> 2010-05-07
A4: Crew | C4: ='RAW 5-7-10'!B7 -> JM, LG
C7: Undulator Values
A9: TB | B9: X (in) | C9: Y (in) | D9: X (mm) | E9: Y (mm) | G9: Probe
A10: 1 | B10: ='RAW 5-7-10'!A28 -> -5.48972973 | C10: ='RAW 5-7-10'!A169 -> 3.479 | D10: =SUM(B10*25.4) -> -139.4391351 | E10: =SUM(C10*25.4) -> 88.3666
A11: 2 | B11: ='RAW 5-7-10'!B28 -> -5.48772973 | C11: ='RAW 5-7-10'!B169 -> 3.471 | D11: =SUM(B11*25.4) -> -139.3883351 | E11: =SUM(C11*25.4) -> 88.1634 | G11: X (in) | H11: X (mm)
A12: 3 | B12: ='RAW 5-7-10'!C28 -> -5.48472973 | C12: ='RAW 5-7-10'!C169 -> 3.471 | D12: -139.3121351 | E12: 88.1634 | G12: ='RAW 5-7-10'!C141 -> -5.477 | H12: =SUM(G12*25.4) -> -139.1158
A13: 4 | B13: ='RAW 5-7-10'!D28 -> -5.48572973 | C13: ='RAW 5-7-10'!D169 -> 3.475 | D13: -139.3375351 | E13: 88.265
A14: 5 | B14: ='RAW 5-7-10'!A35 -> 4.29127027 | C14: ='RAW 5-7-10'!A177 -> -3.6 | D14: 108.9982649 | E14: -91.44
A15: 6 | B15: ='RAW 5-7-10'!B35 -> 4.29527027 | C15: ='RAW 5-7-10'!B177 -> -3.603 | D15: 109.0998649 | E15: -91.5162 | G15: Top of Gage Block
A16: 7 | B16: ='RAW 5-7-10'!C35 -> 4.29527027 | C16: ='RAW 5-7-10'!C177 -> -3.601 | D16: 109.0998649 | E16: -91.4654
A17: 8 | B17: ='RAW 5-7-10'!D35 -> 4.29627027 | C17: ='RAW 5-7-10'!D177 -> -3.6 | D17: 109.1252649 | E17: -91.44 | G17: Y (in) | H17: Y (mm)
G18: ='RAW 5-7-10'!A139 -> -4.399 | H18: =SUM(G18*25.4) -> -111.7346
C19: Undulator PM Values
C21: Upstream | E21: (PM 3)
A22: TB | B22: X (in) | C22: Y (in) | D22: X (mm) | E22: Y (mm) | G22: Flats
A23: Y2 | B23: ='RAW 5-7-10'!A78 -> -1.88272973 | C23: ='RAW 5-7-10'!C118 -> -0.002 | D23: =SUM(B23*25.4) -> -47.82133514 | E23: =SUM(C23*25.4) -> -0.0508
A24: X1 | B24: ='RAW 5-7-10'!A78 -> -1.88272973 | C24: ='RAW 5-7-10'!D118 -> -3.605 | D24: =SUM(B24*25.4) -> -47.82133514 | E24: =SUM(C24*25.4) -> -91.567 | H24: Y(in) | I24: Y(mm)
A25: Y1 | B25: ='RAW 5-7-10'!B78 -> -5.47872973 | D25: =SUM(B25*25.4) -> -139.1597351 | G25: US + | H25: ='RAW 5-7-10'!A197 -> 1.714 | I25: =SUM(H25*25.4) -> 43.5356
G26: US - | H26: ='RAW 5-7-10'!B197 -> 1.714 | I26: =SUM(H26*25.4) -> 43.5356
C27: Downstream | E27: (PM 2) | G27: DS + | H27: ='RAW 5-7-10'!C197 -> 1.715 | I27: =SUM(H27*25.4) -> 43.561
A28: TB | B28: X (in) | C28: Y (in) | D28: X (mm) | E28: Y (mm) | G28: DS - | H28: ='RAW 5-7-10'!D197 -> 1.714 | I28: =SUM(H28*25.4) -> 43.5356
A29: Y1 | B29: ='RAW 5-7-10'!B87 -> -5.47972973 | C29: ='RAW 5-7-10'!A128 -> -0.005 | D29: =SUM(B29*25.4) -> -139.1851351 | E29: =SUM(C29*25.4) -> -0.127
A30: X1 | B30: ='RAW 5-7-10'!A87 -> -1.88172973 | C30: ='RAW 5-7-10'!B128 -> -3.605 | D30: =SUM(B30*25.4) -> -47.79593514 | E30: =SUM(C30*25.4) -> -91.567
A31: Y2 | B31: ='RAW 5-7-10'!C87 -> -5.47872973 | D31: =SUM(B31*25.4) -> -139.1597351
C33: Ref. PM Values
C35: Upstream | E35: (PM 4)
A36: TB | B36: X (in) | C36: Y (in) | D36: X (mm) | E36: Y (mm)
A37: Y1 | B37: ='RAW 5-7-10'!B68 -> -3.59672973 | C37: ='RAW 5-7-10'!A118 -> 0.002 | D37: =SUM(B37*25.4) -> -91.35693514 | E37: =SUM(C37*25.4) -> 0.0508
A38: X1 | B38: 0 | C38: ='RAW 5-7-10'!B118 -> -3.606 | D38: 0 | E38: =SUM(C38*25.4) -> -91.5924
A39: Y2 | B39: ='RAW 5-7-10'!C68 -> -3.60172973 | D39: =SUM(B39*25.4) -> -91.48393514
C41: Downstream | E41: (PM 1)
A42: TB | B42: X (in) | C42: Y (in) | D42: X (mm) | E42: Y (mm)
A43: Y1 | B43: ='RAW 5-7-10'!B96 -> -3.59772973 | C43: ='RAW 5-7-10'!C128 -> -0.002 | D43: =SUM(B43*25.4) -> -91.38233514 | E43: =SUM(C43*25.4) -> -0.0508
A44: X1 | B44: 0 | C44: ='RAW 5-7-10'!D128 -> -3.605 | D44: 0 | E44: =SUM(C44*25.4) -> -91.567
A45: Y2 | B45: ='RAW 5-7-10'!C96 -> -3.59272973 | D45: =SUM(B45*25.4) -> -91.25533514
C47: Ref. Block
A48: TB | B48: X (in) | C48: Y (in) | D48: X (mm) | E48: Y (mm)
A49: A | B49: ='RAW 5-7-10'!A45 -> -7.03372973 | C49: ='RAW 5-7-10'!A188 -> -0.239 | D49: =SUM(B49*25.4) -> -178.6567351 | E49: =SUM(C49*25.4) -> -6.0706
A50: B | B50: ='RAW 5-7-10'!B45 -> -2.49972973 | D50: =SUM(B50*25.4) -> -63.49313514
A51: C | B51: ='RAW 5-7-10'!C45 -> -0.7427297297 | C51: ='RAW 5-7-10'!C188 -> -2.384 | D51: =SUM(B51*25.4) -> -18.86533514 | E51: =SUM(C51*25.4) -> -60.5536
A52: D | B52: ='RAW 5-7-10'!D45 -> -0.7427297297 | C52: ='RAW 5-7-10'!D188 -> -5.466 | D52: =SUM(B52*25.4) -> -18.86533514 | E52: =SUM(C52*25.4) -> -138.8364

Sheet RAW 5-7-10
A1: MMF | D1: PM Checks
A3: "X"
A5: Undulator | B5: SN 18
A6: Date: | B6: 2010-05-07
A7: Crew: | B7: JM, LG
A9: BUCK IN
A10: Far Value | B10: 0 | C10: PM1 X1
A11: Near Value | B11: 0 | C11: PM 4 X1
A12: 1st Far | B12: 27
A13: 1st. Near | B13: 27.348
A14: 2nd. Far | B14: 29
A15: 2nd Near | B15: 27.868
A16: Far Should Read | B16: =BuckIn(B10,B11,B12,B13,B14,B15) -> 27.47027027
A17: Near Should Read | B17: 27.47027027
A18: LOS | B18: 27.47027027
A20: Undulator
A23: 1) | B23: 2) | C23: 3) | D23: 4)
A24: 31.96 | B24: 31.958 | C24: 31.955 | D24: 31.956
A25: 1 | B25: 1 | C25: 1 | D25: 1
A26: =SUM(A24:A25) -> 32.96 | B26: =SUM(B24:B25) -> 32.958 | C26: =SUM(C24:C25) -> 32.955 | D26: =SUM(D24:D25) -> 32.956
A27: =B18 -> 27.47027027 | B27: =B18 -> 27.47027027 | C27: =B18 -> 27.47027027 | D27: =B18 -> 27.47027027
A28: =SUM(A27-A26) -> -5.48972973 | B28: =SUM(B27-B26) -> -5.48772973 | C28: =SUM(C27-C26) -> -5.48472973 | D28: =SUM(D27-D26) -> -5.48572973
A30: 5) | B30: 6) | C30: 7) | D30: 8)
A31: 22.179 | B31: 22.175 | C31: 22.175 | D31: 22.174
A32: 1 | B32: 1 | C32: 1 | D32: 1
A33: =SUM(A31:A32) -> 23.179 | B33: =SUM(B31:B32) -> 23.175 | C33: =SUM(C31:C32) -> 23.175 | D33: =SUM(D31:D32) -> 23.174
A34: =B18 -> 27.47027027 | B34: =B18 -> 27.47027027 | C34: =B18 -> 27.47027027 | D34: =B18 -> 27.47027027
A35: =SUM(A34-A33) -> 4.29127027 | B35: =SUM(B34-B33) -> 4.29527027 | C35: =SUM(C34-C33) -> 4.29527027 | D35: =SUM(D34-D33) -> 4.29627027
B38: Reference | C38: Block
A40: A) | B40: B) | C40: C) | D40: D)
A41: 33.504 | B41: 28.97 | C41: 27.213 | D41: 27.213
A42: 1 | B42: 1 | C42: 1 | D42: 1
A43: =SUM(A41:A42) -> 34.504 | B43: =SUM(B41:B42) -> 29.97 | C43: =SUM(C41:C42) -> 28.213 | D43: =SUM(D41:D42) -> 28.213
A44: =B18 -> 27.47027027 | B44: =B18 -> 27.47027027 | C44: =B18 -> 27.47027027 | D44: =B18 -> 27.47027027
A45: =SUM(A44-A43) -> -7.03372973 | B45: =SUM(B44-B43) -> -2.49972973 | C45: =SUM(C44-C43) -> -0.7427297297 | D45: =SUM(D44-D43) -> -0.7427297297
A51: MMF | D51: PM Checks
A53: "X"
A55: =B18 -> 27.47027027 | B55: LOS
A56: Undulator | B56: =B5 -> SN 18
A57: Date: | B57: =B6 -> 2010-05-07
A58: Crew: | B58: =B7 -> JM, LG
B61: PM4
A63: X1) Buck In | B63: Y1) | C63: Y2)
B64: 30.067 | C64: 30.072
B65: 1 | C65: 1
B66: =SUM(B64:B65) -> 31.067 | C66: =SUM(C64:C65) -> 31.072
B67: =B18 -> 27.47027027 | C67: =B18 -> 27.47027027
A68: 0 | B68: =SUM(B67-B66) -> -3.59672973 | C68: =SUM(C67-C66) -> -3.60172973
B71: PM3
A73: X1) | B73: Y1) | C73: Y2)
A74: 28.353 | B74: 31.949 | C74: 31.951
A75: 1 | B75: 1 | C75: 1
A76: =SUM(A74:A75) -> 29.353 | B76: =SUM(B74:B75) -> 32.949 | C76: =SUM(C74:C75) -> 32.951
A77: =B18 -> 27.47027027 | B77: =B18 -> 27.47027027 | C77: =B18 -> 27.47027027
A78: =SUM(A77-A76) -> -1.88272973 | B78: =SUM(B77-B76) -> -5.47872973 | C78: =SUM(C77-C76) -> -5.48072973
B81: PM 2
A82: X1) | B82: Y1) | C82: Y2)
A83: 28.352 | B83: 31.95 | C83: 31.949
A84: 1 | B84: 1 | C84: 1
A85: =SUM(A83:A84) -> 29.352 | B85: =SUM(B83:B84) -> 32.95 | C85: =SUM(C83:C84) -> 32.949
A86: =B18 -> 27.47027027 | B86: =B18 -> 27.47027027 | C86: =B18 -> 27.47027027
A87: =SUM(A86-A85) -> -1.88172973 | B87: =SUM(B86-B85) -> -5.47972973 | C87: =SUM(C86-C85) -> -5.47872973
B90: PM1
A91: X1) Buck In | B91: Y1) | C91: Y2)
B92: 30.068 | C92: 30.063
B93: 1 | C93: 1
B94: =SUM(B92:B93) -> 31.068 | C94: =SUM(C92:C93) -> 31.063
B95: =B18 -> 27.47027027 | C95: =B18 -> 27.47027027
A96: 0 | B96: =SUM(B95-B94) -> -3.59772973 | C96: =SUM(C95-C94) -> -3.59272973
A101: MMF | D101: PM Checks
A103: "Y" | C103: PM4Y1 | D103: PM1Y1
C104: 8.893 | D104: 8.897
C105: 1 | D105: 1
A106: Undulator | B106: =B5 -> SN 18 | C106: =SUM(C104+C105) -> 9.893 | D106: =SUM(D104+D105) -> 9.897
A107: Date: | B107: =B6 -> 2010-05-07
A108: Crew: | B108: =B7 -> JM, LG
C109: HI = | D109: =AVERAGE(C106,D106) -> 9.895
A111: PM4 | C111: PM3
A113: Y1) | B113: X1) | C113: Y2) | D113: X1
A114: =C104 -> 8.893 | B114: 12.501 | C114: 8.897 | D114: 12.5
A115: 1 | B115: 1 | C115: 1 | D115: 1
A116: =SUM(A114:A115) -> 9.893 | B116: =SUM(B114:B115) -> 13.501 | C116: =SUM(C114:C115) -> 9.897 | D116: =SUM(D114:D115) -> 13.5
A117: =D109 -> 9.895 | B117: =D109 -> 9.895 | C117: =D109 -> 9.895 | D117: =D109 -> 9.895
A118: =SUM(A117-A116) -> 0.002 | B118: =SUM(B117-B116) -> -3.606 | C118: =SUM(C117-C116) -> -0.002 | D118: =SUM(D117-D116) -> -3.605
A121: PM2 | C121: PM1
A123: Y1) | B123: X1) | C123: Y1) | D123: X1)
A124: 8.9 | B124: 12.5 | C124: =D104 -> 8.897 | D124: 12.5
A125: 1 | B125: 1 | C125: 1 | D125: 1
A126: =SUM(A124:A125) -> 9.9 | B126: =SUM(B124:B125) -> 13.5 | C126: =SUM(C124:C125) -> 9.897 | D126: =SUM(D124:D125) -> 13.5
A127: =D109 -> 9.895 | B127: =D109 -> 9.895 | C127: =D109 -> 9.895 | D127: =D109 -> 9.895
A128: =SUM(A127-A126) -> -0.005 | B128: =SUM(B127-B126) -> -3.605 | C128: =SUM(C127-C126) -> -0.002 | D128: =SUM(D127-D126) -> -3.605
A135: Top Of Gage Block | C135: Probe Location in (X)
A137: 14.294 | C137: -5.47 | D137: LOS
A138: =D109 -> 9.895 | C138: 0.032 | D138: Mic To Plus Edge
A139: =SUM(A138-A137) -> -4.399 | C139: =SUM(C137+C138) -> -5.438
C140: -0.039
C141: =(C139+C140) -> -5.477 | D141: Probe Location
A151: MMF | D151: PM Checks
A153: "Y"
A155: Undulator | B155: =B5 -> SN 18
A156: Date: | B156: =B6 -> 2010-05-07
A157: Crew: | B157: =B7 -> JM, LG
A160: HI = | B160: =D109 -> 9.895
A162: Undulator
A164: 1) | B164: 2) | C164: 3) | D164: 4)
A165: 5.416 | B165: 5.424 | C165: 5.424 | D165: 5.42
A166: 1 | B166: 1 | C166: 1 | D166: 1
A167: =SUM(A165:A166) -> 6.416 | B167: =SUM(B165:B166) -> 6.424 | C167: =SUM(C165:C166) -> 6.424 | D167: =SUM(D165:D166) -> 6.42
A168: =D109 -> 9.895 | B168: =D109 -> 9.895 | C168: =D109 -> 9.895 | D168: =D109 -> 9.895
A169: =SUM(A168-A167) -> 3.479 | B169: =SUM(B168-B167) -> 3.471 | C169: =SUM(C168-C167) -> 3.471 | D169: =SUM(D168-D167) -> 3.475
A172: 5) | B172: 6) | C172: 7) | D172: 8)
A173: 12.495 | B173: 12.498 | C173: 12.496 | D173: 12.495
A174: 1 | B174: 1 | C174: 1 | D174: 1
A175: =SUM(A173+A174) -> 13.495 | B175: =SUM(B173+B174) -> 13.498 | C175: =SUM(C173+C174) -> 13.496 | D175: =SUM(D173+D174) -> 13.495
A176: =D109 -> 9.895 | B176: =D109 -> 9.895 | C176: =D109 -> 9.895 | D176: =D109 -> 9.895
A177: =SUM(A176-A175) -> -3.6 | B177: =SUM(B176-B175) -> -3.603 | C177: =SUM(C176-C175) -> -3.601 | D177: =SUM(D176-D175) -> -3.6
A181: Reference Block
A183: A) | B183: B) | C183: C) | D183: D)
A184: 9.134 | C184: 11.279 | D184: 14.361
A185: 1 | C185: 1 | D185: 1
A186: =SUM(A184+A185) -> 10.134 | C186: =SUM(C184+C185) -> 12.279 | D186: =SUM(D184+D185) -> 15.361
A187: =D109 -> 9.895 | C187: =D109 -> 9.895 | D187: =D109 -> 9.895
A188: =SUM(A187-A186) -> -0.239 | B188: 0 | C188: =SUM(C187-C186) -> -2.384 | D188: =SUM(D187-D186) -> -5.466
A191: Flats
A193: U/S | C193: D/S
A194: (+) | B194: (-) | C194: (+) | D194: (-)
A195: 8.181 | B195: 8.181 | C195: 8.18 | D195: 8.181
A196: =D109 -> 9.895 | B196: =D109 -> 9.895 | C196: =D109 -> 9.895 | D196: =D109 -> 9.895
A197: =SUM(A196-A195) -> 1.714 | B197: =SUM(B196-B195) -> 1.714 | C197: =SUM(C196-C195) -> 1.715 | D197: =SUM(D196-D195) -> 1.714
